[Event "Live Chess"]
[Site "Chess.com"]
[Date "2023.09.16"]
[Round "-"]
[White "Gustavoksbr"]
[Black "Jonas_Rodrigues"]
[Result "1-0"]
[WhiteElo "1913"]
[BlackElo "1279"]
[TimeControl "900+5"]
[EndTime "16:56:13 PDT"]
[Termination "Gustavoksbr venceu por xeque-mate"]

1. e4 {[%clk 0:15:03.2]} 1... e5 {[%clk 0:15:02.3]} 2. f4 {[%clk 0:15:07.3]}
2... exf4 {[%clk 0:15:04.4]} 3. Nf3 {[%clk 0:15:11.9]} 3... g5 {[%clk
0:15:07.7]} 4. Bc4 {[%clk 0:15:16.1]} 4... g4 {[%clk 0:15:10.9]} 5. O-O {[%clk
0:15:12.1]} 5... gxf3 {[%clk 0:15:14.8]} 6. Qxf3 {[%clk 0:15:17]} 6... Qf6
{[%clk 0:15:17.8]} 7. e5 {[%clk 0:14:48.7]} 7... Qxe5 {[%clk 0:15:21.2]} 8.
Bxf7+ {[%clk 0:14:52.3]} 8... Kxf7 {[%clk 0:15:23.6]} 9. d4 {[%clk 0:14:56.3]}
9... Qxd4+ {[%clk 0:15:08.6]} 10. Be3 {[%clk 0:14:57.4]} 10... Qxe3+ {[%clk
0:15:06.6]} 11. Qxe3 {[%clk 0:15:00.2]} 11... Nc6 {[%clk 0:15:07.8]} 12. Nc3
{[%clk 0:14:53.1]} 12... Nf6 {[%clk 0:15:11]} 13. Rxf4 {[%clk 0:14:47.5]} 13...
b6 {[%clk 0:15:13.7]} 14. Rxf6+ {[%clk 0:14:41.4]} 14... Kxf6 {[%clk 0:15:16.6]}
15. Rf1+ {[%clk 0:14:44.9]} 15... Kg6 {[%clk 0:15:15]} 16. Qe4+ {[%clk
0:14:36.2]} 16... Kg7 {[%clk 0:15:11.7]} 17. Qg4+ {[%clk 0:14:19.9]} 17... Kh6
{[%clk 0:15:13.1]} 18. Rf6# {[%clk 0:14:21.1]} 1-0

[Event "Live Chess"]
[Site "Chess.com"]
[Date "2023.09.16"]
[Round "-"]
[White "Cantalicioo"]
[Black "Larissa1413"]
[Result "0-1"]
[WhiteElo "1572"]
[BlackElo "1922"]
[TimeControl "900+5"]
[EndTime "16:56:26 PDT"]
[Termination "Larissa1413 venceu por desistência"]

1. d4 {[%clk 0:15:03.4]} 1... e6 {[%clk 0:14:47.1]} 2. e4 {[%clk 0:15:03.9]}
2... d5 {[%clk 0:14:45.1]} 3. e5 {[%clk 0:15:08.1]} 3... c5 {[%clk 0:14:47.3]}
4. c3 {[%clk 0:15:11]} 4... Nc6 {[%clk 0:14:49.9]} 5. Nf3 {[%clk 0:15:14.8]}
5... Qa5 {[%clk 0:14:44.1]} 6. Qc2 {[%clk 0:14:51.4]} 6... cxd4 {[%clk
0:14:43.3]} 7. b4 {[%clk 0:14:49.2]} 7... Qb6 {[%clk 0:14:32.4]} 8. Nxd4 {[%clk
0:14:50.4]} 8... Nxd4 {[%clk 0:14:32.5]} 9. cxd4 {[%clk 0:14:54.5]} 9... Bd7
{[%clk 0:14:20.1]} 10. Be3 {[%clk 0:14:53.9]} 10... Bxb4+ {[%clk 0:14:19.3]} 11.
Nc3 {[%clk 0:14:55.2]} 11... Rc8 {[%clk 0:14:21]} 12. O-O-O {[%clk 0:14:55.8]}
12... Rxc3 {[%clk 0:14:19.3]} 0-1

[Event "Live Chess"]
[Site "Chess.com"]
[Date "2023.09.16"]
[Round "-"]
[White "Tercette"]
[Black "GilbertoGOFaria"]
[Result "0-1"]
[WhiteElo "275"]
[BlackElo "1667"]
[TimeControl "900+5"]
[EndTime "16:57:55 PDT"]
[Termination "GilbertoGOFaria venceu por xeque-mate"]

1. d4 {[%clk 0:15:02]} 1... g6 {[%clk 0:15:03.4]} 2. e4 {[%clk 0:15:04.7]} 2...
Bg7 {[%clk 0:15:08]} 3. Bc4 {[%clk 0:15:00.8]} 3... d6 {[%clk 0:15:11.2]} 4. Nf3
{[%clk 0:15:00.9]} 4... Nf6 {[%clk 0:15:14.4]} 5. Ng5 {[%clk 0:15:04.6]} 5...
O-O {[%clk 0:15:17.3]} 6. Bxf7+ {[%clk 0:15:00.5]} 6... Rxf7 {[%clk 0:15:20]} 7.
Nxf7 {[%clk 0:15:04]} 7... Kxf7 {[%clk 0:15:24.9]} 8. e5 {[%clk 0:15:06.7]} 8...
dxe5 {[%clk 0:15:27.4]} 9. dxe5 {[%clk 0:15:10]} 9... Qxd1+ {[%clk 0:15:31.2]}
10. Kxd1 {[%clk 0:15:12.2]} 10... Ne4 {[%clk 0:15:35.8]} 11. e6+ {[%clk
0:15:14.9]} 11... Bxe6 {[%clk 0:15:39.4]} 12. f3 {[%clk 0:15:16.9]} 12... Nf2+
{[%clk 0:15:43.1]} 13. Ke1 {[%clk 0:15:16.8]} 13... Nxh1 {[%clk 0:15:48]} 14.
Kf1 {[%clk 0:15:20.1]} 14... Nc6 {[%clk 0:15:48.6]} 15. Nc3 {[%clk 0:15:22.3]}
15... Bxc3 {[%clk 0:15:50.1]} 16. bxc3 {[%clk 0:15:24.5]} 16... Rd8 {[%clk
0:15:54.5]} 17. Rb1 {[%clk 0:15:21.2]} 17... Bc4+ {[%clk 0:15:41.4]} 18. Ke1
{[%clk 0:15:20.1]} 18... Rd6 {[%clk 0:15:34]} 19. Rxb7 {[%clk 0:15:21.6]} 19...
Re6+ {[%clk 0:15:37.9]} 20. Kd1 {[%clk 0:15:21.4]} 20... Nf2+ {[%clk 0:15:37]}
21. Kd2 {[%clk 0:15:21.4]} 21... Re2# {[%clk 0:15:40.9]} 0-1

[Event "Live Chess"]
[Site "Chess.com"]
[Date "2023.09.16"]
[Round "-"]
[White "FerreiraPedro"]
[Black "Gabriel0298"]
[Result "1-0"]
[WhiteElo "1410"]
[BlackElo "1592"]
[TimeControl "900+5"]
[EndTime "16:58:38 PDT"]
[Termination "FerreiraPedro venceu por xeque-mate"]

1. Nf3 {[%clk 0:14:58.2]} 1... e6 {[%clk 0:15:04.9]} 2. d4 {[%clk 0:15:01.8]}
2... d5 {[%clk 0:15:09.8]} 3. c4 {[%clk 0:15:02]} 3... Nf6 {[%clk 0:15:14]} 4.
Nc3 {[%clk 0:15:04.7]} 4... Bb4 {[%clk 0:15:18]} 5. cxd5 {[%clk 0:15:00.5]} 5...
Nxd5 {[%clk 0:15:21.1]} 6. Bd2 {[%clk 0:14:58.7]} 6... Nxc3 {[%clk 0:15:20.3]}
7. Bxc3 {[%clk 0:15:02.9]} 7... Bxc3+ {[%clk 0:15:23.9]} 8. bxc3 {[%clk
0:15:07.8]} 8... O-O {[%clk 0:15:27.6]} 9. e3 {[%clk 0:15:12.3]} 9... b6 {[%clk
0:15:31.1]} 10. Bd3 {[%clk 0:15:16.8]} 10... Bb7 {[%clk 0:15:36]} 11. O-O {[%clk
0:15:19.3]} 11... Nd7 {[%clk 0:15:40.6]} 12. Nd2 {[%clk 0:15:16.9]} 12... c5
{[%clk 0:15:43.1]} 13. Be4 {[%clk 0:15:15.2]} 13... Qc7 {[%clk 0:15:43.8]} 14.
Bxb7 {[%clk 0:15:17.3]} 14... Qxb7 {[%clk 0:15:48.7]} 15. Nc4 {[%clk 0:15:21.3]}
15... cxd4 {[%clk 0:15:52.7]} 16. cxd4 {[%clk 0:15:26.2]} 16... Nf6 {[%clk
0:15:55.9]} 17. Ne5 {[%clk 0:15:25.1]} 17... Nd5 {[%clk 0:15:58.7]} 18. Qb3
{[%clk 0:15:25.9]} 18... Rac8 {[%clk 0:16:01.7]} 19. Rac1 {[%clk 0:15:29.6]}
19... Rc7 {[%clk 0:16:03.7]} 20. Rxc7 {[%clk 0:15:15.1]} 20... Qxc7 {[%clk
0:16:08.6]} 21. h3 {[%clk 0:15:04]} 21... Rc8 {[%clk 0:16:11.7]} 22. Qb2 {[%clk
0:14:59.7]} 22... Qc2 {[%clk 0:16:12.9]} 23. Qxc2 {[%clk 0:14:48.2]} 23... Rxc2
{[%clk 0:16:17.8]} 24. a4 {[%clk 0:14:51.9]} 24... Ra2 {[%clk 0:16:21.3]} 25.
Rc1 {[%clk 0:14:56]} 25... g6 {[%clk 0:16:23.1]} 26. e4 {[%clk 0:14:41.2]} 26...
Nf6 {[%clk 0:16:22.9]} 27. Rc8+ {[%clk 0:14:41.3]} 27... Kg7 {[%clk 0:16:26.8]}
28. Rc7 {[%clk 0:14:45.7]} 28... Nxe4 {[%clk 0:16:28.5]} 29. Rxf7+ {[%clk
0:14:49.3]} 29... Kh6 {[%clk 0:16:32.4]} 30. Rxa7 {[%clk 0:14:49.2]} 30... Rxf2
{[%clk 0:16:35]} 31. a5 {[%clk 0:14:46.2]} 31... bxa5 {[%clk 0:16:36.9]} 32.
Rxa5 {[%clk 0:14:51.1]} 32... Rd2 {[%clk 0:16:40.4]} 33. Nf3 {[%clk 0:14:38.7]}
33... Rd1+ {[%clk 0:16:41]} 34. Kh2 {[%clk 0:14:42.2]} 34... Nd6 {[%clk
0:16:29.2]} 35. Re5 {[%clk 0:14:34.2]} 35... Nf5 {[%clk 0:16:31]} 36. Rxe6
{[%clk 0:14:34.6]} 36... Nxd4 {[%clk 0:16:35]} 37. Nxd4 {[%clk 0:14:38.7]} 37...
Rxd4 {[%clk 0:16:39.9]} 38. Kg3 {[%clk 0:14:42]} 38... Rd3+ {[%clk 0:16:38.2]}
39. Kf4 {[%clk 0:14:45.9]} 39... Rd2 {[%clk 0:16:40.9]} 40. g4 {[%clk
0:14:44.9]} 40... Rd3 {[%clk 0:16:42.3]} 41. h4 {[%clk 0:14:48.1]} 41... Rd4+
{[%clk 0:16:44.7]} 42. Re4 {[%clk 0:14:41.1]} 42... Rxe4+ {[%clk 0:16:47.1]} 43.
Kxe4 {[%clk 0:14:46]} 43... Kg7 {[%clk 0:16:51.4]} 44. Ke5 {[%clk 0:14:48.5]}
44... h6 {[%clk 0:16:55.2]} 45. g5 {[%clk 0:14:48.8]} 45... hxg5 {[%clk
0:16:58.9]} 46. hxg5 {[%clk 0:14:52.8]} 46... Kf7 {[%clk 0:17:03.8]} 47. Kd6
{[%clk 0:14:54.4]} 47... Kg7 {[%clk 0:16:50.4]} 48. Ke6 {[%clk 0:14:56.7]} 48...
Kg8 {[%clk 0:16:53.7]} 49. Kf6 {[%clk 0:15:00.1]} 49... Kf8 {[%clk 0:16:57.7]}
50. Kxg6 {[%clk 0:15:04.5]} 50... Kg8 {[%clk 0:17:02.2]} 51. Kf6 {[%clk
0:15:05.7]} 51... Kf8 {[%clk 0:17:06.3]} 52. g6 {[%clk 0:15:10.6]} 52... Kg8
{[%clk 0:17:10.4]} 53. g7 {[%clk 0:15:14.4]} 53... Kh7 {[%clk 0:17:12.7]} 54.
Kf7 {[%clk 0:15:19.1]} 54... Kh6 {[%clk 0:17:16.7]} 55. g8=Q {[%clk 0:15:24]}
55... Kh5 {[%clk 0:17:21.6]} 56. Kf6 {[%clk 0:15:28.1]} 56... Kh4 {[%clk
0:17:26.5]} 57. Kf5 {[%clk 0:15:32.7]} 57... Kh3 {[%clk 0:17:31.4]} 58. Kf4
{[%clk 0:15:37.3]} 58... Kh2 {[%clk 0:17:36.3]} 59. Kf3 {[%clk 0:15:41.9]} 59...
Kh1 {[%clk 0:17:41.2]} 60. Qg2# {[%clk 0:15:45.7]} 1-0

[Event "Live Chess"]
[Site "Chess.com"]
[Date "2023.09.16"]
[Round "-"]
[White "Capi-D-Vara"]
[Black "Japaawz"]
[Result "1-0"]
[WhiteElo "1272"]
[BlackElo "397"]
[TimeControl "900+5"]
[EndTime "16:58:51 PDT"]
[Termination "Capi-D-Vara venceu por desistência"]

1. e4 {[%clk 0:15:03.9]} 1... e5 {[%clk 0:15:04.3]} 2. Nf3 {[%clk 0:15:07.4]}
2... Qf6 {[%clk 0:15:08.5]} 3. d4 {[%clk 0:15:07.6]} 3... d6 {[%clk 0:15:09.3]}
4. dxe5 {[%clk 0:14:50.9]} 4... dxe5 {[%clk 0:15:12.8]} 5. Bg5 {[%clk
0:14:51.7]} 5... Qd6 {[%clk 0:15:06.5]} 6. Qxd6 {[%clk 0:14:53.9]} 6... Bxd6
{[%clk 0:15:09.7]} 7. Nc3 {[%clk 0:14:58.8]} 7... Bg4 {[%clk 0:15:10.7]} 8. Nd2
{[%clk 0:14:53.6]} 8... h6 {[%clk 0:15:08.1]} 9. Be3 {[%clk 0:14:55.4]} 9... Nf6
{[%clk 0:15:10.6]} 10. h3 {[%clk 0:14:58.3]} 10... Be6 {[%clk 0:15:10]} 11. Bc4
{[%clk 0:15:01.6]} 11... Bxc4 {[%clk 0:15:12.6]} 12. Nxc4 {[%clk 0:15:06.5]}
12... O-O {[%clk 0:15:15.9]} 13. Nxd6 {[%clk 0:15:07.4]} 13... cxd6 {[%clk
0:15:18.5]} 14. O-O-O {[%clk 0:15:12]} 14... Nc6 {[%clk 0:15:21.3]} 15. Rxd6
{[%clk 0:14:56.4]} 15... Nb4 {[%clk 0:14:58.2]} 16. Bc5 {[%clk 0:14:40.5]} 16...
Nxe4 {[%clk 0:14:54.1]} 17. Nxe4 {[%clk 0:14:28.1]} 17... Nxa2+ {[%clk
0:14:57.4]} 18. Kb1 {[%clk 0:14:32.4]} 18... Rfd8 {[%clk 0:14:54.4]} 19. Kxa2
{[%clk 0:14:28.8]} 19... Rxd6 {[%clk 0:14:58.1]} 20. Nxd6 {[%clk 0:14:32.5]}
20... Rd8 {[%clk 0:15:02.9]} 21. Nxb7 {[%clk 0:14:32.8]} 21... Rc8 {[%clk
0:15:04.9]} 22. b4 {[%clk 0:14:27.6]} 22... Rc7 {[%clk 0:15:08.4]} 23. Nd6
{[%clk 0:14:29]} 23... Kf8 {[%clk 0:15:09.3]} 24. Rd1 {[%clk 0:14:32.9]} 24...
Rc6 {[%clk 0:15:13]} 25. Nf5+ {[%clk 0:14:26.4]} 25... Kg8 {[%clk 0:15:13.7]}
26. Ne7+ {[%clk 0:14:29.1]} 1-0

[Event "Live Chess"]
[Site "Chess.com"]
[Date "2023.09.16"]
[Round "-"]
[White "MNPedroh"]
[Black "Fellipezin"]
[Result "1-0"]
[WhiteElo "1865"]
[BlackElo "1582"]
[TimeControl "900+5"]
[EndTime "16:59:28 PDT"]
[Termination "MNPedroh venceu por desistência"]

1. e4 {[%clk 0:15:04.2]} 1... c5 {[%clk 0:15:01.2]} 2. Nf3 {[%clk 0:15:08.6]}
2... e6 {[%clk 0:15:02.7]} 3. c3 {[%clk 0:15:13.1]} 3... Nc6 {[%clk 0:15:05.3]}
4. d4 {[%clk 0:15:16.2]} 4... cxd4 {[%clk 0:15:09]} 5. cxd4 {[%clk 0:15:21.1]}
5... d5 {[%clk 0:14:52.4]} 6. Nc3 {[%clk 0:15:19.6]} 6... Bb4 {[%clk 0:14:50]}
7. Bd3 {[%clk 0:15:19.5]} 7... h6 {[%clk 0:14:42.7]} 8. O-O {[%clk 0:15:20]}
8... Nge7 {[%clk 0:14:43.4]} 9. Qa4 {[%clk 0:15:18.5]} 9... O-O {[%clk
0:14:29.7]} 10. a3 {[%clk 0:15:12.7]} 10... Bxc3 {[%clk 0:14:27.3]} 11. bxc3
{[%clk 0:15:17.6]} 11... Bd7 {[%clk 0:14:16.3]} 12. Qd1 {[%clk 0:15:07.5]} 12...
Qa5 {[%clk 0:13:38.9]} 13. Bd2 {[%clk 0:15:08.9]} 13... Qc7 {[%clk 0:12:40.9]}
14. g3 {[%clk 0:15:07.8]} 14... dxe4 {[%clk 0:12:39.4]} 15. Bxe4 {[%clk
0:15:12.7]} 15... Nd5 {[%clk 0:12:41.6]} 16. Bxd5 {[%clk 0:15:14.7]} 16... exd5
{[%clk 0:12:45.5]} 17. Bf4 {[%clk 0:15:19.3]} 17... Qa5 {[%clk 0:12:42.4]} 18.
Bd6 {[%clk 0:15:19.9]} 18... Rfe8 {[%clk 0:12:38]} 19. Bb4 {[%clk 0:15:24]}
19... Nxb4 {[%clk 0:12:41.8]} 20. axb4 {[%clk 0:15:28.9]} 20... Qc7 {[%clk
0:12:43.6]} 21. Qd3 {[%clk 0:15:28.8]} 21... a6 {[%clk 0:12:25.7]} 22. Ne5
{[%clk 0:15:30.8]} 22... Bb5 {[%clk 0:12:25.2]} 23. c4 {[%clk 0:15:07.6]} 23...
dxc4 {[%clk 0:12:02.8]} 24. Qf5 {[%clk 0:14:48.5]} 24... c3 {[%clk 0:11:49.1]}
25. Rfc1 {[%clk 0:14:39.1]} 25... Rac8 {[%clk 0:11:49]} 26. Rc2 {[%clk
0:13:33.3]} 26... Red8 {[%clk 0:11:39.9]} 27. Rac1 {[%clk 0:13:15.9]} 27... Qe7
{[%clk 0:07:52.8]} 28. Rxc3 {[%clk 0:13:07.8]} 28... Rxc3 {[%clk 0:07:55.1]} 29.
Rxc3 {[%clk 0:13:12.7]} 29... Rxd4 {[%clk 0:07:52.6]} 30. Rc8+ {[%clk
0:13:09.7]} 30... Be8 {[%clk 0:07:55.2]} 31. Nf3 {[%clk 0:12:10.3]} 31... g6
{[%clk 0:07:14.5]} 32. Qc5 {[%clk 0:11:32.2]} 32... Qxc5 {[%clk 0:06:10.8]} 33.
Rxe8+ {[%clk 0:11:34.9]} 33... Kg7 {[%clk 0:06:12.8]} 34. bxc5 {[%clk
0:11:38.9]} 34... Rd1+ {[%clk 0:06:09.3]} 35. Kg2 {[%clk 0:11:42.5]} 35... a5
{[%clk 0:06:08.6]} 36. Rb8 {[%clk 0:11:44.5]} 36... Rc1 {[%clk 0:06:10.5]} 37.
Rxb7 {[%clk 0:11:42.3]} 37... Rxc5 {[%clk 0:06:14.1]} 38. Ra7 {[%clk 0:11:47]}
38... h5 {[%clk 0:06:12.9]} 39. Nd4 {[%clk 0:11:51.3]} 39... Kf6 {[%clk
0:05:57]} 40. Nb3 {[%clk 0:11:47.2]} 40... Rb5 {[%clk 0:05:52.1]} 41. Ra6+
{[%clk 0:11:47.9]} 41... Kg7 {[%clk 0:05:54.1]} 42. Nxa5 {[%clk 0:11:51.4]} 1-0

[Event "Live Chess"]
[Site "Chess.com"]
[Date "2023.09.16"]
[Round "-"]
[White "GustavoFarinha"]
[Black "Miinero"]
[Result "1/2-1/2"]
[WhiteElo "1698"]
[BlackElo "1867"]
[TimeControl "900+5"]
[EndTime "17:00:14 PDT"]
[Termination "Partida empatada por acordo"]

1. e4 {[%clk 0:15:03.5]} 1... e5 {[%clk 0:15:02.7]} 2. Nf3 {[%clk 0:15:07.7]}
2... Nc6 {[%clk 0:15:06.7]} 3. Bc4 {[%clk 0:15:12.2]} 3... Bc5 {[%clk
0:15:10.2]} 4. c3 {[%clk 0:15:15.7]} 4... Nf6 {[%clk 0:15:12.7]} 5. d3 {[%clk
0:15:18.9]} 5... d6 {[%clk 0:15:15.9]} 6. Bg5 {[%clk 0:15:17.3]} 6... Bg4 {[%clk
0:15:18.8]} 7. O-O {[%clk 0:15:14.9]} 7... h6 {[%clk 0:15:22]} 8. Bh4 {[%clk
0:15:18.1]} 8... g5 {[%clk 0:15:25.7]} 9. Bg3 {[%clk 0:15:22.3]} 9... Qd7 {[%clk
0:15:29.8]} 10. Nbd2 {[%clk 0:15:23.6]} 10... O-O-O {[%clk 0:15:32.9]} 11. Re1
{[%clk 0:15:27.3]} 11... Rdg8 {[%clk 0:15:29.5]} 12. b4 {[%clk 0:15:23.3]} 12...
Bb6 {[%clk 0:15:28]} 13. a4 {[%clk 0:15:26]} 13... a5 {[%clk 0:15:30.4]} 14. b5
{[%clk 0:15:24.9]} 14... Ne7 {[%clk 0:15:32.9]} 15. Bxf7 {[%clk 0:14:48.2]}
15... Rg7 {[%clk 0:15:32.2]} 16. Bb3 {[%clk 0:14:49.3]} 16... h5 {[%clk
0:15:34.5]} 17. Nc4 {[%clk 0:14:35.7]} 17... h4 {[%clk 0:15:29.4]} 18. Nxb6+
{[%clk 0:14:31]} 18... cxb6 {[%clk 0:15:34.3]} 19. Rc1 {[%clk 0:13:46.1]} 19...
hxg3 {[%clk 0:15:36.7]} 20. fxg3 {[%clk 0:13:47.4]} 20... Kb8 {[%clk 0:15:18.3]}
21. d4 {[%clk 0:13:35.7]} 21... exd4 {[%clk 0:15:16.4]} 22. cxd4 {[%clk
0:13:40.6]} 22... Rgh7 {[%clk 0:15:18]} 23. e5 {[%clk 0:13:22.2]} 23... Nfd5
{[%clk 0:15:15.5]} 24. e6 {[%clk 0:13:06.8]} 24... Qe8 {[%clk 0:15:05.1]} 25.
Qc2 {[%clk 0:12:42.2]} 25... Bxf3 {[%clk 0:15:02.7]} 26. gxf3 {[%clk 0:12:44.8]}
26... Rxh2 {[%clk 0:15:05.3]} 27. Qxh2 {[%clk 0:12:41.2]} 27... Rxh2 {[%clk
0:15:10.2]} 28. Kxh2 {[%clk 0:12:45.6]} 28... Qh5+ {[%clk 0:15:12.5]} 29. Kg2
{[%clk 0:12:47.5]} 29... Nb4 {[%clk 0:15:09.7]} 30. Rh1 {[%clk 0:12:20.4]} 30...
Qg6 {[%clk 0:15:10.5]} 1/2-1/2

[Event "Live Chess"]
[Site "Chess.com"]
[Date "2023.09.16"]
[Round "-"]
[White "Joasgodoy"]
[Black "abcgames2904"]
[Result "1-0"]
[WhiteElo "693"]
[BlackElo "1184"]
[TimeControl "900+5"]
[EndTime "17:01:05 PDT"]
[Termination "Joasgodoy venceu por desistência"]

1. e4 {[%clk 0:14:59.1]} 1... e5 {[%clk 0:15:04.9]} 2. Nf3 {[%clk 0:15:01.3]}
2... Nc6 {[%clk 0:15:09.8]} 3. Bb5 {[%clk 0:15:02.2]} 3... Nf6 {[%clk
0:15:14.7]} 4. c3 {[%clk 0:15:01.7]} 4... Bc5 {[%clk 0:15:19.6]} 5. b4 {[%clk
0:15:02.3]} 5... O-O {[%clk 0:15:24.5]} 6. bxc5 {[%clk 0:15:05.3]} 6... a6
{[%clk 0:15:28.4]} 7. Ba4 {[%clk 0:14:40.9]} 7... Nxe4 {[%clk 0:15:32]} 8. O-O
{[%clk 0:14:19.8]} 8... Nxc5 {[%clk 0:15:35.6]} 9. Bxc6 {[%clk 0:14:10.2]} 9...
dxc6 {[%clk 0:15:35.9]} 10. a4 {[%clk 0:14:09.8]} 10... Nd3 {[%clk 0:15:29.2]}
11. Ba3 {[%clk 0:13:33.9]} 11... Bg4 {[%clk 0:15:28]} 12. h3 {[%clk 0:13:35]}
12... Bxf3 {[%clk 0:15:31.9]} 13. Qxf3 {[%clk 0:13:32.4]} 13... Nf4 {[%clk
0:15:36.1]} 14. Bxf8 {[%clk 0:13:25]} 14... Qxf8 {[%clk 0:15:38.5]} 15. Na3
{[%clk 0:13:02.3]} 15... Qe7 {[%clk 0:15:37]} 16. Nc4 {[%clk 0:12:58.5]} 16...
Rd8 {[%clk 0:15:40.4]} 17. Rae1 {[%clk 0:12:57.4]} 17... Rd3 {[%clk 0:15:44]}
18. Rxe5 {[%clk 0:12:48.2]} 18... Qxe5 {[%clk 0:15:35.6]} 19. Nxe5 {[%clk
0:12:43.1]} 19... Rxf3 {[%clk 0:15:39.2]} 20. Nxf3 {[%clk 0:12:36.5]} 20... h5
{[%clk 0:15:41.3]} 21. Re1 {[%clk 0:12:39]} 21... Kh7 {[%clk 0:15:45.1]} 22. g3
{[%clk 0:12:37.1]} 22... Nxh3+ {[%clk 0:15:42.1]} 23. Kg2 {[%clk 0:12:39.5]}
23... g5 {[%clk 0:15:42.5]} 24. Re7 {[%clk 0:12:37.7]} 24... Kg6 {[%clk
0:15:45.9]} 25. Ne5+ {[%clk 0:12:34.1]} 25... Kf6 {[%clk 0:15:49.4]} 26. Re8
{[%clk 0:12:19.5]} 26... g4 {[%clk 0:15:50.2]} 27. d4 {[%clk 0:12:00.8]} 27...
Ng5 {[%clk 0:15:51.7]} 28. Nd7+ {[%clk 0:11:57.7]} 28... Kg7 {[%clk 0:15:54.1]}
29. Re5 {[%clk 0:11:34]} 29... Nf3 {[%clk 0:15:50.8]} 30. Rxh5 {[%clk
0:11:30.8]} 30... b5 {[%clk 0:15:51.7]} 31. a5 {[%clk 0:11:29.2]} 31... Nxd4
{[%clk 0:15:48.9]} 32. cxd4 {[%clk 0:11:31.3]} 32... b4 {[%clk 0:15:53.8]} 33.
Nb8 {[%clk 0:11:01]} 33... b3 {[%clk 0:15:58.7]} 34. Rh1 {[%clk 0:10:59.8]}
34... Kf6 {[%clk 0:15:37]} 35. Nxa6 {[%clk 0:11:01.7]} 35... Ke6 {[%clk
0:15:41.9]} 36. Nxc7+ {[%clk 0:11:04.8]} 36... Kd6 {[%clk 0:15:45.4]} 37. Ne8+
{[%clk 0:10:53.4]} 37... Kd5 {[%clk 0:15:46.7]} 38. a6 {[%clk 0:10:55]} 38...
Kxd4 {[%clk 0:15:48.5]} 39. a7 {[%clk 0:10:58.7]} 39... Kc3 {[%clk 0:15:53.4]}
40. a8=Q {[%clk 0:11:00.4]} 40... Kc2 {[%clk 0:15:58.3]} 41. Qa3 {[%clk
0:10:59]} 41... b2 {[%clk 0:16:03.2]} 42. Qc5+ {[%clk 0:10:38.2]} 42... Kb3
{[%clk 0:16:06.4]} 43. Rb1 {[%clk 0:10:38.7]} 43... Ka2 {[%clk 0:16:07.7]} 44.
Qc2 {[%clk 0:10:25]} 1-0

[Event "Live Chess"]
[Site "Chess.com"]
[Date "2023.09.16"]
[Round "-"]
[White "Luisgustavo100"]
[Black "Ferazo"]
[Result "0-1"]
[WhiteElo "943"]
[BlackElo "1406"]
[TimeControl "900+5"]
[EndTime "17:01:10 PDT"]
[Termination "Ferazo venceu por desistência"]

1. e4 {[%clk 0:15:00.4]} 1... c5 {[%clk 0:15:02.5]} 2. Nf3 {[%clk 0:15:03.2]}
2... Nc6 {[%clk 0:15:04.8]} 3. d4 {[%clk 0:15:03.9]} 3... cxd4 {[%clk
0:15:07.5]} 4. Nxd4 {[%clk 0:15:05.9]} 4... Nf6 {[%clk 0:15:07.1]} 5. Nc3 {[%clk
0:15:05.9]} 5... g6 {[%clk 0:15:08.8]} 6. Be2 {[%clk 0:14:35.3]} 6... Bg7 {[%clk
0:15:07.2]} 7. O-O {[%clk 0:14:33.8]} 7... O-O {[%clk 0:15:06.1]} 8. Bf3 {[%clk
0:14:13.6]} 8... d6 {[%clk 0:15:00.6]} 9. Re1 {[%clk 0:14:03.9]} 9... Bd7 {[%clk
0:14:59.5]} 10. Nxc6 {[%clk 0:13:39.8]} 10... Bxc6 {[%clk 0:15:02.1]} 11. Nd5
{[%clk 0:13:31.8]} 11... Nd7 {[%clk 0:14:53.3]} 12. c4 {[%clk 0:13:04.3]} 12...
Ne5 {[%clk 0:14:40.4]} 13. Qe2 {[%clk 0:11:18.5]} 13... e6 {[%clk 0:14:19.9]}
14. Nb4 {[%clk 0:10:31.4]} 14... Qa5 {[%clk 0:14:20]} 15. Nxc6 {[%clk
0:10:14.3]} 15... Nxc6 {[%clk 0:14:24.9]} 16. Bd2 {[%clk 0:10:13.7]} 16... Qa6
{[%clk 0:14:16]} 17. Bc3 {[%clk 0:09:36.2]} 17... Bxc3 {[%clk 0:13:59.8]} 18.
bxc3 {[%clk 0:09:35.8]} 18... Rac8 {[%clk 0:13:52.3]} 19. Rab1 {[%clk
0:09:27.1]} 19... Ne5 {[%clk 0:13:41.3]} 20. Red1 {[%clk 0:08:55.3]} 20... Rxc4
{[%clk 0:12:48]} 21. Rb4 {[%clk 0:07:48.5]} 21... Nxf3+ {[%clk 0:12:23.7]} 22.
gxf3 {[%clk 0:07:23.9]} 22... Rd4 {[%clk 0:11:30.9]} 23. Qc2 {[%clk 0:06:32.8]}
23... Rxd1+ {[%clk 0:11:19.1]} 24. Qxd1 {[%clk 0:06:29.8]} 24... Rc8 {[%clk
0:11:23.2]} 25. Qb3 {[%clk 0:05:51.6]} 25... Qe2 {[%clk 0:09:49.5]} 26. Kg2
{[%clk 0:05:01]} 26... Rc5 {[%clk 0:09:40.6]} 27. Rxb7 {[%clk 0:04:42]} 27...
Rg5+ {[%clk 0:09:40.9]} 0-1

[Event "Live Chess"]
[Site "Chess.com"]
[Date "2023.09.16"]
[Round "-"]
[White "CroNmo"]
[Black "samurai0718"]
[Result "1/2-1/2"]
[WhiteElo "1844"]
[BlackElo "1354"]
[TimeControl "900+5"]
[EndTime "17:01:24 PDT"]
[Termination "Partida empatada por acordo"]

1. d4 {[%clk 0:15:02.7]} 1... g6 {[%clk 0:15:02.3]} 2. c4 {[%clk 0:15:07]} 2...
Nf6 {[%clk 0:15:04.1]} 3. Nf3 {[%clk 0:15:11.7]} 3... Bg7 {[%clk 0:15:07.8]} 4.
Nc3 {[%clk 0:15:16.4]} 4... O-O {[%clk 0:15:11.9]} 5. e4 {[%clk 0:15:21]} 5...
d6 {[%clk 0:15:15.5]} 6. Be2 {[%clk 0:15:25.6]} 6... Nbd7 {[%clk 0:15:15.2]} 7.
O-O {[%clk 0:15:29.7]} 7... b6 {[%clk 0:15:16.5]} 8. d5 {[%clk 0:15:34.2]} 8...
Bb7 {[%clk 0:15:17.1]} 9. Qc2 {[%clk 0:15:38.3]} 9... c6 {[%clk 0:15:19.7]} 10.
dxc6 {[%clk 0:15:39]} 10... Bxc6 {[%clk 0:15:24.6]} 11. Nd5 {[%clk 0:15:43.2]}
11... e5 {[%clk 0:15:18.8]} 12. Rd1 {[%clk 0:15:39.2]} 12... Nc5 {[%clk
0:15:10]} 13. Bd3 {[%clk 0:15:36.8]} 13... Qd7 {[%clk 0:14:50.6]} 14. b4 {[%clk
0:15:38]} 14... Nxd3 {[%clk 0:14:45.9]} 15. Qxd3 {[%clk 0:15:40.5]} 15... Rab8
{[%clk 0:14:42.1]} 16. b5 {[%clk 0:15:44.8]} 16... Bxd5 {[%clk 0:14:44.6]} 17.
cxd5 {[%clk 0:15:49.2]} 17... Rfc8 {[%clk 0:14:41.5]} 18. a4 {[%clk 0:15:53.1]}
18... Rc7 {[%clk 0:14:44.4]} 19. Ba3 {[%clk 0:15:56.8]} 19... Rbc8 {[%clk
0:14:47.3]} 20. Nd2 {[%clk 0:15:53.2]} 20... Rc3 {[%clk 0:14:49.7]} 21. Qe2
{[%clk 0:15:56.5]} 21... Bh6 {[%clk 0:14:43.4]} 22. Bb4 {[%clk 0:15:56.7]} 22...
Rc2 {[%clk 0:14:39.4]} 23. Qe1 {[%clk 0:15:51.2]} 23... Qg4 {[%clk 0:14:14.4]}
24. h3 {[%clk 0:15:46.7]} 24... Qh4 {[%clk 0:14:06.8]} 25. Bxd6 {[%clk
0:15:39.8]} 25... Bxd2 {[%clk 0:13:51.3]} 26. Rxd2 {[%clk 0:15:41.6]} 26... Rxd2
{[%clk 0:13:49.1]} 27. Qxd2 {[%clk 0:15:40]} 27... Nxe4 {[%clk 0:13:52]} 28. Qe3
{[%clk 0:15:32]} 28... Nxd6 {[%clk 0:13:36.7]} 29. Qxe5 {[%clk 0:15:30]} 29...
Nc4 {[%clk 0:12:07.1]} 30. Qe2 {[%clk 0:15:18.3]} 30... Qd4 {[%clk 0:11:38.8]}
31. Rd1 {[%clk 0:15:16.9]} 31... Qb2 {[%clk 0:10:45.7]} 32. Qg4 {[%clk
0:15:10.2]} 32... Rc5 {[%clk 0:10:26.9]} 33. d6 {[%clk 0:14:51.7]} 33... Nd2
{[%clk 0:09:34.6]} 34. d7 {[%clk 0:14:43.7]} 34... Rd5 {[%clk 0:09:23.4]} 35.
Qe2 {[%clk 0:14:05]} 1/2-1/2